[Event "FIDE Zonal 4-2 Open 2023"]
[Site "Dimbroko"]
[Date "2023.03.29"]
[Round "6.6"]
[White "David Leroy Debblay"]
[Black "Amako Marc Arnold"]
[Result "0-1"]
[ECO "A13"]
[WhiteElo "1823"]
[BlackElo "1647"]
[Annotator "NA RC COMBH"]
[PlyCount "100"]
[EventDate "2023.03.25"]
[EventType "swiss"]
[EventCountry "IVO"]
[SourceTitle "playchess.com"]
[Source "ChessBase"]
[SourceQuality "1"]
[TimeControl "40/5400+30:1800+30"]

1. Nf3 {[%emt 0:00:08]} Nf6 {[%emt 0:00:13]} 2. b3 {[%emt 0:00:22]} d5 {[%emt 0:00:18]} 3. Bb2 {[%emt 0:00:04]} Nbd7 {[%emt 0:00:40]} 4. e3 {[%emt 0:00:51]} e6 {[%emt 0:00:57]} 5. c4 {[%emt 0:00:35]} Be7 {[%emt 0:02:32]} 6. Be2 {[%emt 0:01:55]} O-O {[%emt 0:00:18]} 7. Na3 {[%emt 0:00:13]} c5 {[%emt 0:01:17]} 8. O-O {[%emt 0:00:52]} b6 {[%emt 0:02:10]} 9. Rc1 {[%emt 0:00:31]} Bb7 {[%emt 0:01:11]} 10. Nc2 {[%emt 0:02:20]} dxc4 {[%emt 0:01:48]} 11. bxc4 {[%emt 0:03:38]} Qc7 {[%emt 0:00:43]} 12. Nce1 {[%emt 0:03:05]} Rad8 {[%emt 0:01:50]} 13. Qc2 {[%emt 0:00:31]} e5 {[%emt 0:02:29]} 14. d3 {[%emt 0:03:41]} Rfe8 {[%emt 0:00:45]} 15. e4 {[%emt 0:00:35]} Bd6 {[%emt 0:00:56]} 16. h3 {[%emt 0:02:34]} Nf8 {[%emt 0:01:09]} 17. Qd2 {[%emt 0:00:43]} Ne6 {[%emt 0:01:40]} 18. Nc2 {[%emt 0:00:55]} Nf4 {[%emt 0:00:42]} 19. Kh2 {[%emt 0:04:52]} Bc8 {[%emt 0:02:11]} 20. Ng1 {[%emt 0:01:32]} Qd7 {[%emt 0:02:41]} 21. Ne3 {[%emt 0:02:11]} Bf8 {[%emt 0:01:03]} 22. Nd5 {[%emt 0:01:11]} N6xd5 {[%emt 0:00:38]} 23. cxd5 {[%emt 0:00:37]} g6 {[%emt 0:04:03]} 24. Bg4 {[%emt 0:01:43]} f5 {[%emt 0:06:13]} 25. Bd1 {[%emt 0:01:01]} Ba6 {[%emt 0:05:01]} 26. Be2 {[%emt 0:58:19]} Qb5 {[%emt 0:00:30]} 27. Rc3 {[%emt 0:00:30]} fxe4 {[%emt 0:00:30]} 28. Rb3 {[%emt 0:00:30]} Qa5 {[%emt 0:00:30]} 29. Bc3 {[%emt 0:00:30]} Qa4 {[%emt 0:00:30]} 30. Bd1 {[%emt 0:00:30]} Qd7 {[%emt 0:00:30]} 31. Re1 {[%emt 0:00:30]} Qxd5 {[%emt 0:00:30]} 32. Ra3 {[%emt 0:00:30]} Bxd3 {[%emt 0:00:30]} 33. g3 {[%emt 0:00:30]} Ne6 {[%emt 0:00:30]} 34. Rxa7 {[%emt 0:00:30]} Ra8 {[%emt 0:00:30]} 35. Bb3 {[%emt 0:00:30]} c4 {[%emt 0:00:30]} 36. Rxa8 {[%emt 0:00:30]} Rxa8 {[%emt 0:00:30]} 37. Bd1 {[%emt 0:00:33]} Bc5 38. h4 {[%emt 0:00:47]} Bd4 {[%emt 0:25:35]} 39. Bg4 {[%emt 0:03:49]} Bxc3 {[%emt 0:04:03]} 40. Qxc3 {[%emt 0:01:31]} Rxa2 {[%emt 0:00:26]} 41. Nh3 {[%emt 0:30:20]} Nd4 {[%emt 0:35:00]} 42. Qb4 {[%emt 0:00:52]} Qc5 {[%emt 0:05:46]} 43. Qc3 {[%emt 0:00:21]} Nb3 {[%emt 0:00:40]} 44. Rg1 {[%emt 0:03:35]} Qa5 {[%emt 0:00:48]} 45. Be6+ {[%emt 0:00:00]} Kg7 {[%emt 0:00:00]} 46. Qe1 {[%emt 0:00:00]} Qxe1 {[%emt 0:00:00]} 47. Rxe1 {[%emt 0:00:00]} Ra1 {[%emt 0:00:00]} 48. Re3 {[%emt 0:00:00]} Nd4 {[%emt 0:00:00]} 49. Bxc4 {[%emt 0:00:00]} Bxc4 {[%emt 0:00:00]} 50. Rxe4 {[%emt 0:00:00]} Bd5 {[%emt 0:00:00]} 0-1

[Event "FIDE Zonal 4-2 Open 2023"]
[Site "Dimbroko"]
[Date "2023.03.29"]
[Round "6.7"]
[White "Egbe, Kossi Thierry"]
[Black "Daniel Kolliemelen"]
[Result "1-0"]
[ECO "B01"]
[WhiteElo "1740"]
[BlackElo "1805"]
[Annotator "NA RC COMBH"]
[PlyCount "45"]
[EventDate "2023.03.25"]
[EventType "swiss"]
[EventCountry "IVO"]
[SourceTitle "playchess.com"]
[Source "ChessBase"]
[SourceQuality "1"]
[TimeControl "40/5400+30:1800+30"]

1. e4 {[%emt 0:00:03]} d5 {[%emt 0:00:51]} 2. exd5 {[%emt 0:00:17]} Nf6 {[%emt 0:00:30]} 3. d4 {[%emt 0:00:50]} Nxd5 {[%emt 0:00:43]} 4. c4 {[%emt 0:00:11]} Nf6 {[%emt 0:01:05]} 5. g3 {[%emt 0:01:16]} e6 {[%emt 0:06:55]} 6. Bg2 {[%emt 0:00:15]} c6 {[%emt 0:00:46]} 7. Nc3 {[%emt 0:00:13]} h5 {[%emt 0:07:12]} 8. Bg5 {[%emt 0:00:36]} Be7 {[%emt 0:01:06]} 9. Nf3 {[%emt 0:01:13]} b6 {[%emt 0:00:56]} 10. O-O {[%emt 0:00:47]} Bb7 {[%emt 0:00:59]} 11. Re1 {[%emt 0:00:14]} Nbd7 {[%emt 0:04:20]} 12. Qe2 {[%emt 0:02:16]} Kf8 {[%emt 0:01:38]} 13. Rad1 {[%emt 0:01:20]} g6 14. Ne5 {[%emt 0:03:48]} Qc7 {[%emt 0:03:55]} 15. Nxf7 {[%emt 0:00:16]} Rh7 {[%emt 0:02:37]} 16. Bf4 {[%emt 0:01:44]} Qc8 {[%emt 0:01:12]} 17. Ng5 {[%emt 0:00:10]} Rh8 {[%emt 0:01:18]} 18. Qxe6 {[%emt 0:00:13]} Qe8 {[%emt 0:00:47]} 19. Bd6 {[%emt 0:00:24]} Ng8 {[%emt 0:02:33]} 20. Re3 {[%emt 0:02:15]} Bxd6 {[%emt 0:04:13]} 21. Qxd6+ {[%emt 0:00:16]} Ne7 {[%emt 0:15:57]} 22. Rde1 {[%emt 0:01:18]} Kg8 23. Rxe7 {[%emt 0:01:05]} 1-0

[Event "FIDE Zonal 4-2 Open 2023"]
[Site "Dimbroko"]
[Date "2023.03.29"]
[Round "6.8"]
[White "Bobby Ballah"]
[Black "Foday W. Kondoh"]
[Result "0-1"]
[ECO "E01"]
[WhiteElo "1914"]
[BlackElo "1727"]
[Annotator "TA"]
[PlyCount "62"]
[EventDate "2023.03.25"]
[EventType "swiss"]
[EventCountry "IVO"]
[SourceTitle "playchess.com"]
[Source "ChessBase"]
[SourceQuality "1"]
[TimeControl "40/5400+30:1800+30"]

{[%evp 9,62,43,36,16,11,7,6,2,14,11,25,18,24,13,32,20,23,20,12,14,26,7,67,21,42,10,19,11,38,43,47,37,44,20,45,12,13,21,12,16,30,9,11,9,17,9,31,10,39,8,4,0,27,22,37]} 1. d4 {[%emt 0:00:09]} e6 2. c4 {[%emt 0:00:06]} d5 {[%emt 0:00:14]} 3. Nf3 {[%emt 0:00:10]} Nf6 {[%emt 0:00:06]} 4. g3 {[%emt 0:01:14]} c5 {[%emt 0:00:52]} 5. cxd5 {[%emt 0:00:11]} exd5 {[%emt 0:00:24]} 6. dxc5 {[%emt 0:00:24] E01: Catalan: Early deviations.} Bxc5 {[%emt 0:00:10]} 7. Bg2 {[%emt 0:00:03]} O-O {[%emt 0:00:23]} 8. O-O {[%emt 0:00:04]} Be6 {[%emt 0:00:24]} (8... Nc6 {is interesting.} 9. Qc2 Ne4 10. Nc3 Nb4) 9. Nc3 {[%emt 0:00:08]} h6 {[%emt 0:01:16] [#]} 10. Na4 $146 {[%emt 0:00:32]} ({Predecessor:} 10. e3 a6 11. a3 Nc6 12. Na4 Ba7 13. b4 b5 14. Nc5 a5 15. Nb7 Qc7 16. Nxa5 Nxa5 17. bxa5 Qxa5 18. a4 b4 19. Bb2 Ng4 {½-½ Zorn,N-Dernbecher,K Rangliste 1400-1700 21916 2019}) 10... Bd6 {[%emt 0:01:00]} 11. Nd4 {[%emt 0:01:01]} Nc6 {[%emt 0:00:28]} 12. Nxe6 {[%emt 0:00:57]} fxe6 {[%emt 0:00:10]} 13. Nc3 {[%emt 0:00:08]} Rc8 {[%emt 0:01:11]} 14. e3 {[%emt 0:05:14]} a6 {[%emt 0:00:34]} 15. a3 {[%emt 0:00:55]} Ne5 {[%emt 0:01:14]} (15... Qe8 $11) 16. Ne2 {[%emt 0:00:50]} (16. e4 $14) 16... Qd7 {[%emt 0:03:01]} 17. Nd4 {[%emt 0:01:50]} Nc6 {[%emt 0:00:13]} 18. Bh3 {[%emt 0:01:22]} Nxd4 {[%emt 0:00:15]} 19. exd4 {[%emt 0:00:05]} Rce8 {[%emt 0:00:59]} 20. Qb3 {[%emt 0:05:54]} Qf7 {[%emt 0:01:22]} 21. Be3 {[%emt 0:00:32]} Qh5 {[%emt 0:01:19]} 22. Bg2 {[%emt 0:01:46]} (22. Kg2 $5 {[%cal Rb3b7]}) 22... Ng4 {[%emt 0:01:40][%csl Gg4][%cal Rh5h2] [#]} 23. h3 {[%emt 0:00:27]} Nxe3 {[%emt 0:01:13]} 24. Qxe3 {[%emt 0:00:10]} Rf6 {[%emt 0:01:22]} 25. Rac1 {[%emt 0:01:22]} Ref8 {[%emt 0:01:35]} 26. Rc2 {[%emt 0:00:54]} Qg6 {[%emt 0:01:34]} 27. Rfc1 {[%emt 0:00:48]} Kh7 {[%emt 0:05:38]} 28. f4 {[%emt 0:05:58]} a5 {[%emt 0:08:03]} 29. Qc3 {[%emt 0:01:07]} Kh8 {[%emt 0:02:26]} 30. Rf2 {[%emt 0:02:53]} (30. Qxa5 $2 {too greedy.} Qxg3 31. Qc3 Qxf4 $19) 30... R6f7 {[%emt 0:00:52] [#] Strongly threatening ...Rc7.} 31. Re1 {[%emt 0:05:11]} (31. Qxa5 $2 {loses.} Qxg3 32. Qc3 Qg6 $19) 31... Rc7 {[%emt 0:08:28][%mdl 32768] Weighted Error Value: White=0.12 (very precise) /Black=0.13 (very precise) . Loss on time!?} 0-1

[Event "FIDE Zonal 4-2 Open 2023"]
[Site "Dimbroko"]
[Date "2023.03.29"]
[Round "6.10"]
[White "Joel O. Ebiekuta"]
[Black "De Gondo, Simplice Armel"]
[Result "1-0"]
[ECO "E73"]
[WhiteElo "1855"]
[BlackElo "2086"]
[Annotator "TA"]
[PlyCount "37"]
[EventDate "2023.03.25"]
[EventType "swiss"]
[EventCountry "IVO"]
[SourceTitle "playchess.com"]
[Source "ChessBase"]
[SourceQuality "1"]
[TimeControl "40/5400+30:1800+30"]

{[%evp 10,37,42,34,51,58,61,55,39,54,45,52,51,32,28,0,0,0,64,-20,95,89,142,70,72,30,167,180,146,93]} 1. c4 {[%emt 0:01:46]} Nf6 {[%emt 0:07:26]} 2. Nc3 {[%emt 0:00:12]} d6 {[%emt 0:00:19]} 3. d4 {[%emt 0:00:29]} g6 {[%emt 0:00:16]} 4. e4 {[%emt 0:00:07]} Bg7 {[%emt 0:00:08]} 5. Be2 {[%emt 0:00:13]} O-O {[%emt 0:03:28]} 6. h4 {[%emt 0:00:04][%cal Bh2h4,Bh4h5,Bh5h6][%mdl 32]} Nbd7 {[%emt 0:01:31] E73: King's Indian: Averbakh Variation without 6...c5.} 7. h5 {[%emt 0:00:24]} e5 {[%emt 0:00:10]} 8. d5 {[%emt 0:00:49]} (8. h6 $5 Bh8 $8 9. d5 $14) 8... Nc5 {[%emt 0:00:08] White is slightly better.} 9. h6 {[%emt 0:02:55]} Bh8 {[%emt 0:00:07]} 10. Bg5 {[%emt 0:00:38]} a5 {[%emt 0:00:45][%cal Oc7c6]} 11. Qc2 {[%emt 0:01:58]} c6 {[%emt 0:05:32] [#]} 12. Rd1 $146 {[%emt 0:00:52]} ({Predecessor:} 12. Nf3 Qe8 13. Nd2 Bd7 14. Nb3 Nxb3 15. Qxb3 Qb8 16. Rd1 a4 17. Qc2 Rc8 18. Qd3 cxd5 19. Bxf6 Bxf6 20. Nxd5 {½-½ Gungl,T (2366)-Dobrikov,M (2223) GER-ch 93rd Magdeburg 2022 (1)}) 12... Qc7 {[%emt 0:00:22]} 13. Bf3 {[%emt 0:11:44]} Ne8 {[%emt 0:12:19]} (13... cxd5 $11 14. Bxf6 {[%mdl 64] Remove Defender} (14. exd5 Bf5 $15) (14. Nxd5 Nxd5 15. cxd5 f5 $15) (14. cxd5 Bd7 $11) 14... Bxf6) 14. g4 {[%emt 0:02:42]} (14. Nge2 $14) 14... f6 {[%emt 0:07:27]} (14... Nf6 $11 {remains equal.}) 15. Be3 {[%emt 0:00:11]} Nd7 {[%emt 0:00:59]} (15... Rf7 $142) 16. dxc6 {[%emt 0:03:53] White is much more active.} (16. Be2 $16) 16... bxc6 $14 {[%emt 0:00:09]} 17. c5 {[%emt 0:00:03]} dxc5 {[%emt 0:01:34]} (17... Nxc5 $11 {and Black has nothing to worry.} 18. Be2 Be6) 18. Na4 $18 {[%emt 0:05:54]} Nd6 {[%emt 0:11:59] [#]} 19. Nxc5 {[%emt 0:01:52] Weighted Error Value: White=0.23 (precise) /Black=0.39} (19. Be2 $142 $1) 1-0

[Event "FIDE Zonal 4-2 Open 2023"]
[Site "Dimbroko"]
[Date "2023.03.29"]
[Round "6.11"]
[White "Semeko, Lumen Paco"]
[Black "Mambe, Lobognon Anderson Ol"]
[Result "0-1"]
[ECO "B01"]
[WhiteElo "1483"]
[BlackElo "1916"]
[Annotator "TA"]
[PlyCount "79"]
[EventDate "2023.03.25"]
[EventType "swiss"]
[EventCountry "IVO"]
[SourceTitle "playchess.com"]
[Source "ChessBase"]
[SourceQuality "1"]
[TimeControl "40/5400+30:1800+30"]

{[%evp 9,79,52,104,3,68,26,31,35,58,57,71,7,28,-38,-37,-31,44,-207,-200,-340,-147,-354,-207,-216,-236,-225,-217,-229,-201,-194,-88,-81,-97,-148,-89,-400,0,-21,84,96,75,-58,-46,-37,-44,-93,-77,-301,-302,-300,-7,-6,-9,-44,-52,-44,-31,-31,0,-34,-37,-62,-62,-141,-62,-64,-66,-62,-62,-54,-43,-36]} 1. e4 {[%emt 0:00:20]} d5 {[%emt 0:01:23]} 2. exd5 {[%emt 0:00:17]} Qxd5 {[%emt 0:00:16]} 3. Nc3 Qd6 4. Nf3 {[%emt 0:01:11]} Nc6 {[%emt 0:01:06]} 5. d4 {[%emt 0:00:23]} Bg4 {[%emt 0:00:30]} (5... Nf6 $14) 6. Be2 {[%emt 0:00:34] B01: Scandinavian Defence.} (6. Nb5 $16 Qd7 7. Bf4) 6... e6 {[%emt 0:00:26]} (6... O-O-O $11) 7. Be3 {[%emt 0:00:11]} Nf6 {[%emt 0:00:52]} 8. O-O {[%emt 0:01:08] [#] White is slightly better.} Nd5 $146 {[%emt 0:00:24]} ({Predecessor:} 8... Be7 9. Qd2 O-O 10. Rad1 a6 11. a3 Rad8 12. h3 Bh5 13. Rfe1 Nd5 14. Nxd5 Qxd5 {0-1 Doskocil,K (2157)-Froewis,G (2457) AUT-ch Vor3 Internet blitz 2020 (3)}) 9. Ne4 {[%emt 0:00:30]} Qd7 {[%emt 0:00:21]} 10. c3 {[%emt 0:00:18]} (10. c4 $16 Nxe3 11. fxe3) 10... O-O-O {[%emt 0:00:58]} (10... f5 $5 {[%cal Rf5e4]} 11. Nc5 Bxc5 12. dxc5 h6 $11) 11. Bb5 {[%emt 0:00:39]} (11. Bg5 $11) 11... f5 $1 $15 {[%emt 0:01:34]} 12. Nc5 {[%emt 0:02:44]} Qe8 {[%emt 0:00:29]} (12... Nxe3 $15 13. Nxd7 Nxd1 14. Nxf8 Bxf3 15. Nxe6 Rd6) 13. b4 $2 {[%emt 0:00:53][%mdl 8192]} (13. Nxb7 $14 {keeps the upper hand.} Bxf3 14. Nxd8 {[%mdl 64] Pin} Bxd1 15. Nxc6 (15. Bxc6 $2 {too greedy.} Qxd8 16. Bxd5 exd5 $19)) 13... Nxc3 $19 {[%emt 0:01:12]} 14. Qd3 {[%emt 0:01:12]} (14. Bxc6 {was the only chance.} Qxc6 15. Qd3 Bxf3 16. gxf3) 14... Bxf3 {[%emt 0:05:37]} (14... Nxb5 $1 $19 15. Qxb5 Bxc5 16. Qxc5 Bxf3 17. gxf3 Qg6+ 18. Kh1 Qh5) 15. gxf3 $2 {[%emt 0:00:23]} (15. Qxc3 $17 {was called for.} Bxc5 16. Bxc6 Qxc6 17. gxf3) 15... Nd5 {[%emt 0:03:08]} (15... Qg6+ $142 16. Kh1 Nxb5 17. Qxb5 Bxc5 18. Qxc5 Qh5) 16. Rfd1 {[%emt 0:01:08]} Ndxb4 {[%emt 0:01:37] A dynamic duo of knights.} 17. Qc4 {[%emt 0:00:18]} Bxc5 {[%emt 0:02:19]} 18. dxc5 {[%emt 0:00:39]} Qg6+ {[%emt 0:01:23]} 19. Kh1 {[%emt 0:00:42]} Qh5 {[%emt 0:05:32]} (19... Rd5 $19 20. Rg1 Qh5) 20. Qxe6+ $17 {[%emt 0:01:26]} Kb8 {[%emt 0:00:23] Some like it hot} 21. Be2 ({White should play} 21. Kg2) 21... Nc2 {[%emt 0:09:02]} (21... f4 $142 22. Bxf4 Nd5) 22. Rxd8+ $4 {[%emt 0:02:23][%mdl 8192]} (22. Rdb1 $17 Qg6 23. Qb3) 22... Rxd8 $2 {[%emt 0:00:28]} (22... Nxd8 $19 23. Qe5 Nxa1 24. Qxa1 Qf7) 23. Rb1 $1 $11 {[%emt 0:00:23]} Qe8 {[%emt 0:07:50]} (23... Qg6 $11 24. Qb3 N2b4) 24. Qb3 $1 $16 {[%emt 0:00:37][%csl Gb1][%cal Rb3b7]} N2b4 {[%emt 0:00:16] [#] And now ...f4 would win.} 25. a3 {[%emt 0:00:23]} (25. Bb5 $1 $16) 25... f4 $15 {[%emt 0:00:30]} 26. axb4 {[%emt 0:01:54][%cal Ob4b5]} fxe3 {[%emt 0:02:17]} 27. fxe3 {[%emt 0:00:54]} (27. Qxe3 $15 Qg6 28. Rg1) 27... Rd2 {[%emt 0:03:17]} 28. Rb2 $2 {[%emt 0:04:09]} (28. Re1 $17 {was necessary.}) 28... Rxb2 $19 {[%emt 0:02:11]} 29. Qxb2 {[%emt 0:00:13]} Qe5 $2 {[%emt 0:00:22]} (29... Qxe3 $19 {[%cal Oc6b4] aiming for ...Nxb4!} 30. Qxg7 a6 31. Qg8+ Ka7) 30. Qxe5 $11 {[%emt 0:00:27]} Nxe5 {[%emt 0:00:19][%mdl 4096] Endgame KB-KN} 31. f4 {[%emt 0:00:17]} Nc6 {[%emt 0:00:14]} 32. b5 {[%emt 0:00:15]} Na5 {[%emt 0:00:41]} (32... Nb4 $5 {[%cal Ra7a5]}) 33. Kg2 {[%emt 0:00:21]} Kc8 {[%emt 0:00:19]} 34. e4 Nb3 {[%emt 0:00:42]} 35. c6 {[%emt 0:00:28]} bxc6 {[%emt 0:00:38]} 36. bxc6 {[%emt 0:00:11] [#]} (36. Kf2 $1 $15) 36... Nd4 {[%emt 0:00:08]} (36... a5 $1 $17 {[%cal Ra5a4] Strongly threatening ...a4.} 37. Bb5 Nd4) 37. Ba6+ {[%emt 0:00:07] Black is slightly better.} Kd8 {[%emt 0:00:32]} 38. Kf2 {[%emt 0:00:56]} Nxc6 {[%emt 0:00:17]} 39. Ke3 {[%emt 0:00:16]} Nb4 {[%emt 0:01:01]} 40. Be2 {[%emt 0:00:58] Weighted Error Value: White=0.61/Black=0.64} 0-1

[Event "FIDE Zonal 4-2 Open 2023"]
[Site "Dimbroko"]
[Date "2023.03.30"]
[Round "7.1"]
[White "Ortega Amarelle, Mariano"]
[Black "Cogan, Nicolas"]
[Result "1-0"]
[ECO "A45"]
[WhiteElo "2472"]
[BlackElo "2013"]
[Annotator "TA"]
[PlyCount "77"]
[EventDate "2023.03.25"]
[EventType "swiss"]
[EventCountry "IVO"]
[SourceTitle "playchess.com"]
[Source "ChessBase"]
[SourceQuality "1"]
[TimeControl "40/5400+30:1800+30"]

{[%evp 9,77,0,0,2,8,5,14,13,48,57,50,54,50,45,38,33,118,93,121,119,215,212,206,211,244,92,113,98,120,93,116,109,128,125,146,135,164,150,241,162,204,147,177,177,178,178,189,64,184,184,184,184,184,184,293,230,258,256,257,260,427,421,417,412,397,379,520,517,509,478]} 1. d4 {[%emt 0:00:31]} Nf6 {[%emt 0:00:05]} 2. Bf4 {[%emt 0:00:24]} e6 {[%emt 0:00:33]} 3. e3 {[%emt 0:00:08]} c5 {[%emt 0:00:58]} 4. Nd2 {[%emt 0:02:37]} Be7 {[%emt 0:05:42]} 5. c3 {[%emt 0:08:29]} O-O {[%emt 0:04:24]} 6. Bd3 {[%emt 0:02:32] A45: Trompowsky Attack.} d5 {[%emt 0:07:52]} 7. Ngf3 {[%emt 0:04:50]} b6 {[%emt 0:13:49]} 8. Ne5 {[%emt 0:02:24] The position is equal.} Bb7 {[%emt 0:00:53]} (8... Ba6 {simplifies} 9. Bxa6 Nxa6 10. O-O Nb8) 9. Qf3 {[%emt 0:08:06]} Nbd7 {[%emt 0:05:18]} 10. Qh3 {[%emt 0:12:01]} Re8 {[%emt 0:15:16]} 11. Ndf3 {[%emt 0:24:11]} Nxe5 {[%emt 0:18:23]} 12. Nxe5 {[%emt 0:00:50]} g6 {[%emt 0:02:55]} (12... Bd6 $14) 13. Bb5 {[%emt 0:01:57] [#] White is much more active.} Nh5 $146 {[%emt 0:06:39]} ({Predecessor:} 13... Ne4 14. Nxf7 Qc8 15. Ne5 Rf8 16. Bd7 {1-0 Wittmann,P (2010)-Ahmels,C (2055) Mittelfranken-chTB1 1718 2017 (1.3)}) 14. Bh6 {[%emt 0:03:31]} Qd6 {[%emt 0:07:07]} 15. Bxe8 $18 {[%emt 0:01:56]} (15. Qf3 $6 f6 $16) 15... Rxe8 {[%emt 0:00:07] [#]} 16. g4 $1 {[%emt 0:00:20]} ({Don't play} 16. Qf3 $6 f6 $16) 16... Ng7 {[%emt 0:00:40] [#]} 17. Qg3 $2 {[%emt 0:15:17]} ({Inferior is} 17. Qf3 f6 $11) (17. Bxg7 $1 $18 {is more deadly.} Kxg7 18. Nxf7 {[%mdl 64] Decoy}) 17... f6 $16 {[%emt 0:01:00]} 18. Nf3 {[%emt 0:00:26]} Qd7 {[%emt 0:00:10]} 19. O-O {[%emt 0:00:27]} Bd6 {[%emt 0:00:31]} 20. Bf4 {[%emt 0:00:33]} Bf8 {[%emt 0:04:09]} 21. h4 {[%emt 0:00:12]} Bc8 {[%emt 0:02:45]} 22. Rfe1 {[%emt 0:00:39]} Bb7 {[%emt 0:01:22]} 23. Rad1 {[%emt 0:00:38]} c4 {[%emt 0:00:42]} (23... Rd8 $16 {keeps fighting.} 24. Qg2 Be7) 24. a3 {[%emt 0:01:30]} Bc6 {[%emt 0:00:38]} 25. Qg2 {[%emt 0:01:54]} Qb7 {[%emt 0:00:28]} 26. g5 {[%emt 0:00:47]} f5 {[%emt 0:00:27]} 27. Qh2 {[%emt 0:00:43]} Be7 {[%emt 0:00:32]} 28. Bd6 {[%emt 0:00:35]} (28. Kg2 $18) 28... Bd8 {[%emt 0:00:26]} (28... Bxd6 $14 29. Qxd6 e5) 29. Ne5 $18 {[%emt 0:00:47]} Ba4 {[%emt 0:00:31]} 30. Rd2 {[%emt 0:00:08]} Nh5 {[%emt 0:00:36]} 31. f3 {[%emt 0:00:05]} Bc6 {[%emt 0:00:31]} (31... Be7 $142) 32. Rde2 {[%emt 0:00:22]} Be7 {[%emt 0:00:29]} 33. Bxe7 {[%emt 0:01:09]} Rxe7 {[%emt 0:00:02]} 34. e4 {[%emt 0:00:14]} f4 $2 {[%emt 0:00:57]} (34... Be8 {might work better.} 35. exf5 gxf5) 35. Nxc6 {[%emt 0:00:43]} Qxc6 {[%emt 0:00:01]} 36. exd5 {[%emt 0:00:41]} Qxd5 {[%emt 0:00:08]} 37. Qh3 {[%emt 0:00:22][%cal Re2e6]} Kf7 {[%emt 0:01:22]} 38. Re5 {[%emt 0:00:10]} Qd6 {[%emt 0:00:00]} 39. Kg2 {[%emt 0:00:00] Weighted Error Value: White=0.18 (very precise) /Black=0.36} 1-0

[Event "FIDE Zonal 4-2 Open 2023"]
[Site "Dimbroko"]
[Date "2023.03.30"]
[Round "7.2"]
[White "James, Tondo"]
[Black "Abdulraheem Abdulrahman Akinto"]
[Result "0-1"]
[ECO "D03"]
[WhiteElo "1867"]
[BlackElo "2302"]
[Annotator "TA"]
[PlyCount "72"]
[EventDate "2023.03.25"]
[EventType "swiss"]
[EventCountry "IVO"]
[SourceTitle "playchess.com"]
[Source "ChessBase"]
[SourceQuality "1"]
[TimeControl "40/5400+30:1800+30"]

{[%evp 17,72,-12,-7,-1,0,-7,-8,0,8,-38,14,-36,-43,-53,-47,-70,-65,-110,-100,-123,-46,-76,-8,-23,-20,-23,-14,-38,-34,-24,-22,-16,-23,-93,-79,-169,-197,-276,-279,-304,-236,-237,-242,-362,-323,-989,-978,-29989,-29990,-29991,-29992,-29993,-29994,-29994,-29995,-29995,-29996]} 1. d4 {[%emt 0:00:05]} Nf6 {[%emt 0:00:09]} 2. Nf3 {[%emt 0:00:13]} e6 {[%emt 0:00:12]} 3. Bg5 {[%emt 0:00:06]} d5 {[%emt 0:01:18]} 4. e3 {[%emt 0:00:10]} c5 {[%emt 0:01:42]} 5. c3 {[%emt 0:00:37]} Nbd7 {[%emt 0:00:52]} 6. Nbd2 {[%emt 0:02:19]} Be7 {[%emt 0:00:11]} 7. Bd3 {[%emt 0:00:53]} O-O {[%emt 0:00:36]} 8. O-O {[%emt 0:01:29]} b6 {[%emt 0:00:35]} 9. Rc1 {[%emt 0:01:17]} Bb7 {[%emt 0:00:09]} 10. Re1 {[%emt 0:01:29] D03: 1 d4 d5 2 Nf3 Nf6 3 Bg5, including Torre Attack with early ...d5.} Ne4 {[%emt 0:04:37]} 11. Bxe7 {[%emt 0:00:43]} Qxe7 {[%emt 0:00:03]} 12. Qc2 {[%emt 0:09:05][%cal Rd2e4] The position is equal.} f5 {[%emt 0:04:47] [#]} 13. g3 $146 {[%emt 0:00:44]} (13. Bb5 $11) ({Predecessor:} 13. Nf1 c4 14. Bxe4 fxe4 15. N3d2 e5 16. Ng3 b5 17. b3 Bc6 18. Qd1 Rf6 19. Rf1 exd4 20. exd4 {0-1 Gasperini,A-Mecking,H (2548) Lages JASC 2002 (4)}) 13... Kh8 {[%emt 0:08:55]} (13... Bc6 $15) 14. Nh4 {[%emt 0:08:29]} ({White should try} 14. Bb5 $11) 14... g5 $15 {[%emt 0:07:39]} 15. Ng2 {[%emt 0:00:41]} Qg7 {[%emt 0:05:10]} 16. f3 {[%emt 0:06:12]} Nd6 {[%emt 0:04:48] Black is more active.} 17. Qa4 {[%emt 0:11:09]} e5 {[%emt 0:05:51]} 18. Kh1 {[%emt 0:06:39]} Rf6 {[%emt 0:02:52]} ({Better is} 18... e4 $17 19. Be2 exf3 20. Bxf3 a5) 19. Ba6 {[%emt 0:01:24] [#]} b5 $1 {[%emt 0:11:29]} 20. Bxb5 $11 {[%emt 0:07:05]} Nxb5 {[%emt 0:00:34]} 21. Qxb5 {[%emt 0:00:21]} Rb6 {[%emt 0:00:32][%mdl 64] Deflection} 22. Qd3 {[%emt 0:00:30]} (22. Qe2 {simplifies} Ba6 23. Qd1 Rxb2 24. Rc2) 22... Rxb2 {[%emt 0:02:00]} 23. Rb1 $1 {[%emt 0:00:56]} e4 $36 {[%emt 0:02:49][%mdl 2048] White is under pressure.} 24. Qe2 {[%emt 0:07:04]} Rb6 {[%emt 0:00:34]} 25. fxe4 {[%emt 0:01:19]} (25. f4 $11) 25... fxe4 $17 {[%emt 0:00:31]} 26. Rb3 {[%emt 0:06:12] [#]} (26. c4 $17) 26... Ba6 $1 $19 {[%emt 0:00:46]} 27. Qg4 {[%emt 0:01:39]} (27. c4 {is a better defense.}) 27... Nf6 {[%emt 0:01:34]} 28. Qd1 {[%emt 0:04:11] White is weak on the light squares} Qd7 {[%emt 0:02:27]} 29. dxc5 {[%emt 0:02:32] [#]} Qh3 $1 {[%emt 0:09:33]} 30. Nf1 {[%emt 0:04:05]} (30. Rxb6 $142 axb6 31. Nxe4 dxe4 32. Qd4) (30. cxb6 Ng4) 30... Ng4 {[%emt 0:05:21]} (30... Bxf1 31. Rxf1 Ng4 32. Qd4+ $17) 31. Qd4+ $2 {[%emt 0:01:10]} ({Avoid the trap} 31. Qxd5 $2 Rf8 32. Qd4+ (32. cxb6 $2 {is a self mate.} Rxf1+ {[%mdl 64] Remove Defender} 33. Rxf1 Qxh2#) 32... Kg8 33. Qd5+ (33. cxb6 $2 Rxf1+ {[%mdl 64] Remove Defender} 34. Rxf1 Qxh2#) 33... Kh8 34. Qd4+ (34. cxb6 $2 {gets mated.} Rxf1+ {[%mdl 64] Remove Defender} 35. Rxf1 Qxh2#) 34... Rbf6 $19) (31. Rxb6 Nf2+ 32. Kg1 Nxd1 33. Rxa6 Nxc3 34. Rf6) 31... Rf6 {[%emt 0:00:31] ( -> ...Bxf1)} 32. Reb1 {[%emt 0:03:32]} Bxf1 {[%emt 0:01:30][%csl Gf1][%cal Rh3g2] Black mates.} 33. Rb8+ {[%emt 0:02:51]} Rxb8 {[%emt 0:00:20]} 34. Rxb8+ {[%emt 0:00:10]} Kg7 {[%emt 0:00:10][%csl Gf1][%cal Rh3g2]} 35. Rb7+ {[%emt 0:07:03]} Kh6 {[%emt 0:00:27][%csl Gf1][%cal Rh3g2]} 36. Qxf6+ {[%emt 0:03:35]} Nxf6 {[%emt 0:00:18] Ingenious play by Abdulraheem Abdulrahman Akinto!   Weighted Error Value: White=0.70/Black=0.15 (very precise)} 0-1